fUSD/lending_fUSD_20240808
["ID","MTS","AMOUNT","RATE_DAILY","PERIOD"]
[334468478,1723134643611,-138977.605036,0.0002498,5]
[334468479,1723134643621,-210736.37448184,0.00024988,7]
[334468481,1723134643630,-8686.10031472,0.00024989,5]
[334468483,1723134643639,-155.0,0.00024989,2]
[334468485,1723134643649,-43430.5015736,0.0002499,5]
[334468487,1723134643658,-151.0,0.0002499,7]
[334468489,1723134643668,-151.0,0.0002499,7]
[334468491,1723134643679,-151.0,0.0002499,7]
[334468493,1723134643688,-151.0,0.0002499,7]
[334468495,1723134643698,-43430.5015736,0.0002499,5]
[334468497,1723134643707,-628.5368189,0.00024997,2]
[334468499,1723134643716,-628.5368189,0.00024997,2]
[334468501,1723134643725,-628.5368189,0.00024997,2]
[334468502,1723134643734,-628.5368189,0.00024997,2]
[334468504,1723134643743,-628.5368189,0.00024997,2]
[334468506,1723134643752,-628.5368189,0.00024997,2]
[334468508,1723134643762,-739.0,0.00024999,2]
[334468510,1723134643771,-739.0,0.00024999,2]
[334468512,1723134643781,-739.0,0.00024999,2]
[334468514,1723134643790,-739.0,0.00024999,2]
[334468516,1723134643800,-739.0,0.00024999,2]
[334468518,1723134643809,-739.0,0.00024999,2]
[334468520,1723134643819,-739.0,0.00024999,2]
[334468522,1723134643830,-739.0,0.00024999,2]
[334468524,1723134643839,-739.0,0.00024999,2]
[334468527,1723134643848,-739.0,0.00024999,2]
[334468529,1723134643858,-3830.37970737,0.00025,2]
[334468531,1723134643868,-83348.13180334,0.00025,9]
[334468532,1723134643877,-63858.99017865,0.00025,2]
[334468535,1723134643890,-256.584,0.00025,2]
[334468537,1723134643902,-3007.40000001,0.00025,2]
[334468540,1723134643920,-6301.9788,0.00025,2]
[334468542,1723134643931,-3008.08311096,0.00025,2]
[334468544,1723134643943,-1608.48532314,0.00025,2]
[334468546,1723134643955,-3569.6177846,0.00025,2]
[334468551,1723134643987,-200.0,0.00024973,2]
[334468553,1723134643996,-300.0,0.00024989,2]
[334468555,1723134644006,-6154.157102,0.00025,2]
[334468557,1723134644018,-1224.5387,0.00025,2]
[334468559,1723134644029,-1738.02113,0.00025,2]
[334468561,1723134644040,-2627.76022133,0.00025,2]
[334468563,1723134644052,-1195.38801152,0.00025,2]
[334468565,1723134644066,-5242.74940921,0.00025,2]
[334468568,1723134644080,-30653.29882239,0.00025,2]
[334468570,1723134644091,-11628.09269545,0.00025,2]
[334468572,1723134644103,-6592.47864,0.00025,2]
[334468574,1723134644114,-288.36120507,0.00025,2]
[334468576,1723134644125,-562.41626868,0.00025,2]
[334468578,1723134644136,-704.09202264,0.00025,2]
[334468580,1723134644149,-5971.9,0.00025,2]
[334468583,1723134644162,-651.33802245,0.00025,2]
[334468643,1723134644747,-200.0,0.00024973,2]
[334468645,1723134644757,-21786.27470492,0.00025,2]
[334468647,1723134644768,-10877.31968114,0.00025,2]
[334468650,1723134644784,-7160.48849537,0.00025,2]
[334468652,1723134644795,-35202.95474457,0.00025,2]
[334468654,1723134644807,-1310.0,0.00025,2]
[334468656,1723134644818,-22420.08937347,0.00025,2]
[334468658,1723134644832,-370.19267968,0.00025,2]
[334468661,1723134644843,-1310.01098762,0.00025,2]
[334468663,1723134644855,-28619.65095822,0.00025,2]
[334468665,1723134644867,-1286.6550992,0.00025,2]
[334468667,1723134644879,-6855.90067227,0.00025,2]
[334468669,1723134644891,-682.39886699,0.00025,2]
[334468672,1723134644902,-1500.0,0.00025,2]
[334468674,1723134644915,-1385.902562,0.00025,2]
[334468676,1723134644926,-1201.87353666,0.00025,2]
[334468861,1723134646257,-1644.15644672,0.00022228,2]
[334468866,1723134646269,-249.84355328,0.00022228,2]
[334468871,1723134646279,-151.0,0.00024979,7]
[334468875,1723134646289,-151.0,0.0002498,7]
[334468879,1723134646299,-151.0,0.00024988,7]
[334468882,1723134646309,-151.0,0.0002499,7]
[334468886,1723134646318,-646.15644672,0.00024996,2]
[334468891,1723134646332,-17.19743598,0.00024996,2]
[334468895,1723134646341,-1367.79031662,0.00025,2]
[334468898,1723134646352,-1780.43176568,0.00025,2]
[334468903,1723134646363,-639.4925456,0.00025,2]
[334468906,1723134646374,-1306.89059751,0.00025,2]
[334468909,1723134646386,-1638.832655,0.00025,2]
[334468912,1723134646397,-3187.19048631,0.00025,2]
[334468917,1723134646412,-1682.26,0.00025,2]
[334468924,1723134646475,-23751.81024458,0.00025,2]
[334468926,1723134646487,-543.120025,0.00025,2]
[334469043,1723134647670,-317.65185842,0.00022228,2]
[334469045,1723134647682,-757.34814158,0.00022228,2]
[334469047,1723134647691,-1266.49583928,0.00024603,2]
[334469049,1723134647700,-1000.0,0.000249,2]
[334469051,1723134647710,-15723.18365061,0.00025,2]
[334469053,1723134647721,-31260.0,0.00025,2]
[334469068,1723134647865,-1499.90008,0.00025,2]
[334469071,1723134647877,-493.09011844,0.00025,2]
[334469073,1723134647895,-151.0,0.00024979,7]
[334469075,1723134647904,-2059.0,0.00025,2]
[334469077,1723134647915,-20537.74473871,0.00025,2]
[334469079,1723134647926,-1281.11121,0.00025,2]
[334469082,1723134647937,-1492.69739753,0.00025,2]
[334469084,1723134647948,-371.08009368,0.00025,2]
[334469086,1723134647959,-920.11067912,0.00025,2]
[334469088,1723134647971,-3987.91705982,0.00025,2]
[334469090,1723134647982,-35354.68384835,0.00025,2]
[334469091,1723134647993,-25939.78004743,0.00025,2]
[334469092,1723134648006,-569.62893995,0.00025,2]
[334469093,1723134648017,-3017.17189591,0.00025,2]
[334469094,1723134648029,-3651.45990221,0.00025,2]
[334469095,1723134648040,-4371.77553368,0.00025,2]
[334469096,1723134648052,-322836.74339131,0.00025,2]
[334469097,1723134648066,-8416.42350705,0.00025,2]
[334469098,1723134648085,-6223.91249305,0.00025,2]
[334469099,1723134648097,-950.81443091,0.00025,2]
[334469167,1723135832196,-162.7,0.00013973,2]
[334469168,1723135832206,-906.0,0.000162,3]
[334469169,1723135832216,-300.0,0.00019725,2]
[334469170,1723135832226,-247.76,0.00020778,2]
[334469171,1723135832235,-1876.13214758,0.00020794,2]
[334469172,1723135832244,-150.99,0.00020794,2]
[334469173,1723135832254,-676.11936882,0.00020831,2]
[334469174,1723135832263,-308.16874741,0.00020899,2]
[334469175,1723135832272,-4110.9151,0.00020899,2]
[334469176,1723135832281,-211.62746688,0.00020899,2]
[334469177,1723135832293,-150.99,0.00020999,2]
[334469178,1723135832302,-150.0,0.00021041,2]
[334469179,1723135832311,-499.99,0.00021041,2]
[334469180,1723135832321,-150.0,0.00021999,2]
[334469181,1723135832330,-371.95167885,0.00022,2]
[334469182,1723135832339,-2857.68,0.00022,2]
[334469183,1723135832349,-9414.46,0.00022,2]
[334469184,1723135832358,-783.92,0.00022,2]
[334469185,1723135832367,-340.33,0.0002234,2]
[334469186,1723135832377,-439.64,0.0002234,2]
[334469187,1723135832386,-249.834,0.0002234,2]
[334469188,1723135832395,-500.0,0.00022426,2]
[334469189,1723135832405,-299.2677431,0.00022488,2]
[334469190,1723135832415,-488.0,0.00022569,2]
[334469191,1723135832425,-169.87763976,0.0002262,2]
[334469192,1723135832440,-609.07369875,0.0002262,2]
[334469193,1723135832453,-2243.54866149,0.0002262,2]
[334469194,1723135832463,-1925.52,0.00022712,2]
[334469195,1723135832473,-150.0,0.00022714,2]
[334469196,1723135832482,-23900.0,0.0002276,2]
[334469198,1723135832494,-250.0,0.00022787,2]
[334469200,1723135832504,-343.35,0.0002281,2]
[334469202,1723135832514,-512.0,0.00022914,2]
[334469204,1723135832524,-358.32,0.00022946,2]
[334469206,1723135832538,-331.74,0.00022946,2]
[334469209,1723135832547,-159.08,0.0002297,2]
[334469212,1723135832556,-204.85,0.00022988,2]
[334469215,1723135832566,-247.76,0.00023042,2]
[334469218,1723135832575,-4380.04183939,0.00023064,2]
[334469222,1723135832584,-14069.94971281,0.00023073,2]
[334469225,1723135832594,-426.26,0.00023203,2]
[334469228,1723135832603,-150.0,0.00023321,2]
[334469230,1723135832614,-321.39,0.0002358,2]
[334469232,1723135832623,-321.39,0.00023586,2]
[334469234,1723135832633,-321.39,0.00023592,2]
[334469236,1723135832642,-321.39,0.00023598,2]
[334469238,1723135832651,-321.39,0.00023605,2]
[334469240,1723135832661,-321.39,0.00023611,2]
[334469242,1723135832670,-321.39,0.00023617,2]
[334469243,1723135832680,-321.39,0.00023623,2]
[334469245,1723135832690,-321.39,0.00023629,2]
[334469248,1723135832700,-321.39,0.00023636,2]
[334469249,1723135832709,-321.39,0.00023642,2]
[334469251,1723135832719,-321.39,0.00023648,2]
[334469253,1723135832728,-321.39,0.00023654,2]
[334469254,1723135832738,-321.39,0.0002366,2]
[334469255,1723135832747,-321.39,0.00023666,2]
[334469256,1723135832757,-321.39,0.00023673,2]
[334469257,1723135832766,-321.39,0.00023679,2]
[334469258,1723135832775,-321.39,0.00023685,2]
[334469259,1723135832787,-321.39,0.00023691,2]
[334469260,1723135832795,-321.39,0.00023697,2]
[334469261,1723135832805,-904.9556,0.0002378,2]
[334469262,1723135832815,-6690.0,0.0002378,2]
[334469263,1723135832824,-40177.7231,0.0002378,2]
[334469264,1723135832833,-224.9761,0.0002378,2]
[334469265,1723135832843,-496.376,0.0002378,2]
[334469266,1723135832852,-150.0,0.00023928,2]
[334469267,1723135832861,-755.0,0.0002395,2]
[334469268,1723135832871,-300.0,0.00024124,2]
[334469269,1723135832880,-1931.37486418,0.00024124,2]
[334469270,1723135832890,-755.0,0.00024196,2]
[334469271,1723135832899,-312.4,0.000244,2]
[334469272,1723135832909,-755.0,0.00024443,2]
[334469273,1723135832919,-150.0,0.00024535,2]
[334469274,1723135832929,-755.0,0.0002469,2]
[334469275,1723135832938,-817.86703773,0.0002479,2]
[334469276,1723135832947,-9032.81209199,0.000248,2]
[334469277,1723135832957,-1200.781944,0.000248,2]
[334469278,1723135832966,-817.86703771,0.00024802,2]
[334469279,1723135832975,-817.86703771,0.00024814,2]
[334469280,1723135832984,-817.86703771,0.00024827,2]
[334469281,1723135832993,-817.86703771,0.00024839,2]
[334469282,1723135833003,-203.88619749,0.00024875,2]
[334469283,1723135833013,-180.0,0.00024881,2]
[334469284,1723135833023,-150.0,0.00024887,2]
[334469285,1723135833032,-3294.8956,0.0002489,2]
[334469286,1723135833048,-7843.8526,0.0002489,2]
[334469287,1723135833057,-326.2802915,0.00024896,2]
[334469288,1723135833067,-7500.0,0.000249,2]
[334469289,1723135833076,-1000.0,0.000249,2]
[334469290,1723135833085,-5716.6527,0.000249,2]
[334469291,1723135833095,-321.7070176,0.000249,2]
[334469292,1723135833111,-2294.11842207,0.000249,2]
[334469293,1723135833123,-315.04,0.000249,2]
[334469294,1723135833135,-69.13456033,0.000249,2]
[334469295,1723135833145,-212.05,0.000249,31]
[334469296,1723135833155,-66.15175309,0.000249,31]
[334469297,1723135833166,-145.89824691,0.000249,31]
[334469298,1723135833176,-212.05,0.000249,31]
[334469299,1723135833186,-212.05,0.000249,31]
[334469300,1723135833196,-212.05,0.000249,31]
[334469301,1723135833204,-212.05,0.000249,31]
[334469302,1723135833214,-212.05,0.000249,31]
[334469303,1723135833223,-212.05,0.000249,31]
[334469304,1723135833233,-212.05,0.000249,31]
[334469305,1723135833243,-212.05,0.000249,31]
[334469306,1723135833253,-212.05,0.000249,31]
[334469307,1723135833262,-212.05,0.000249,31]
[334469308,1723135833272,-212.05,0.000249,31]
[334469309,1723135833282,-212.05,0.000249,31]
[334469310,1723135833298,-212.05,0.000249,31]
[334469311,1723135833314,-204.3717531,0.000249,31]
[334469315,1723135838278,-817.86703771,0.00024851,2]
[334469316,1723135838289,-7.6782469,0.000249,31]
[334469317,1723135838298,-212.05,0.000249,31]
[334469318,1723135838307,-212.05,0.000249,31]
[334469319,1723135838317,-170.13126496,0.000249,31]
[334469320,1723135838328,-41.91873504,0.000249,31]
[334469321,1723135838337,-212.05,0.000249,31]
[334469322,1723135838346,-512.15253121,0.000249,2]
[334469323,1723135838356,-358.27083369,0.000249,2]
[334469324,1723135838365,-986.29636374,0.000249,2]
[334469325,1723135838374,-222.9761057,0.000249,2]
[334469326,1723135838383,-1421.19467694,0.000249,2]
[334469327,1723135838392,-178.351684,0.00024932,2]
[334469328,1723135838402,-755.0,0.00024937,2]
[334469329,1723135838412,-233.43800629,0.00024979,2]
[334469330,1723135838421,-18675.1136088,0.0002498,5]
[334469331,1723135838433,-155.0,0.00024989,2]
[334469332,1723135838443,-11246.1262515,0.0002499,5]
[334469333,1723135838454,-999.3089191,0.0002499,5]
[334469334,1723135838465,-1024.9958658,0.0002499,5]
[334469335,1723135838474,-3114.8141342,0.0002499,5]
[334469336,1723135838485,-308.37549499,0.0002499,5]
[334469337,1723135838496,-5648.61521805,0.0002499,5]
[334469338,1723135838568,-264.24,0.0002499,5]
[334469339,1723135838627,-5533.35431226,0.0002499,5]
[334469340,1723135838639,-29935.38492875,0.0002499,5]
[334469346,1723135840205,-817.86703771,0.00024863,2]
[334469347,1723135840215,-474.84322231,0.0002499,5]
[334469392,1723135841331,-1292.35,0.0002499,5]
[334469394,1723135841342,-903.22824882,0.0002499,5]
[334469396,1723135841353,-87970.90222272,0.0002499,5]
[334469399,1723135841365,-77365.45188419,0.0002499,5]
[334469401,1723135841375,-5690.0574,0.0002499,5]
[334469403,1723135841386,-312.004999,0.0002499,5]
[334469405,1723135841397,-12272.11299334,0.0002499,5]
[334469407,1723135841408,-1146.80807837,0.0002499,5]
[334469409,1723135841417,-3917.15436716,0.00024997,2]
[334469411,1723135841429,-5055.39497285,0.00024997,2]
[334469413,1723135841440,-270.84000014,0.00024997,2]
[334469415,1723135841450,-843.16053142,0.00025,2]
[334469418,1723135841461,-400.4380872,0.00025,2]
[334469670,1723135843664,-713.15048736,0.0002368,2]
[334469672,1723135843676,-1153.29261264,0.0002368,2]
[334469674,1723135843686,-1629.18616191,0.00025,2]
[334469676,1723135843695,-5562.2362254,0.00025,9]
[334469678,1723135843707,-452.628,0.00025,9]
[334469680,1723135843717,-1743.35739434,0.00025,9]
[334469681,1723135843729,-14977.9886949,0.00025,9]
[334469682,1723135843740,-19682.12666753,0.00025,9]
[334469683,1723135843750,-26897.60759055,0.00025,2]
[334469898,1723135846286,-817.86703771,0.00024876,2]
[334469900,1723135846297,-283575.97434084,0.00025,2]
[334469906,1723135846347,-545.40061468,0.00025,2]
[334469971,1723137033048,-161.11,0.00013973,2]
[334469973,1723137033058,-262.45713528,0.00013973,2]
[334469980,1723137033108,-2.98286472,0.00013973,2]
[334469982,1723137033118,-300.0,0.00019725,2]
[334469984,1723137033129,-300.0,0.00019725,2]
[334469986,1723137033139,-265.44,0.00020447,2]
[334469988,1723137033149,-83.03585466,0.00021017,2]
[334469994,1723137033492,-147.67414534,0.00021017,2]
[334469996,1723137033502,-253.0,0.00021484,2]
[334469998,1723137033511,-4692.22,0.00021698,2]
[334470000,1723137033521,-420.0,0.00021698,2]
[334470002,1723137033530,-222.08691734,0.00022,2]
[334470005,1723137033540,-119.92474502,0.00022339,2]
[334470010,1723137033557,-30.07525498,0.00022339,2]
[334470012,1723137033566,-1582.0,0.0002234,2]
[334470014,1723137033576,-279.88604238,0.0002234,2]
[334470019,1723137033587,-342.11395762,0.0002234,2]
[334470021,1723137033597,-1925.0,0.0002234,2]
[334470023,1723137033608,-1256.0,0.0002234,2]
[334470024,1723137033622,-4987.05,0.0002234,2]
[334470026,1723137033632,-3489.83604238,0.0002234,2]
[334470027,1723137033645,-925.07724057,0.0002234,2]
[334470028,1723137033656,-1422.08671705,0.0002234,2]
[334470029,1723137033666,-289.0,0.0002234,2]
[334470030,1723137033675,-4935.44925069,0.0002234,2]
[334470031,1723137033686,-2100.0,0.0002234,2]
[334470032,1723137033697,-14701.55074931,0.0002234,2]
[334470033,1723137033709,-1203.0,0.0002234,2]
[334470034,1723137033719,-5128.0,0.0002234,2]
[334470035,1723137033728,-171.67,0.0002277,2]
[334470036,1723137033738,-250.0,0.00022783,2]
[334470037,1723137033748,-150.0,0.00022824,2]
[334470038,1723137033758,-200.0,0.00023,2]
[334470039,1723137033768,-162.12,0.00023133,2]
[334470040,1723137033778,-609.6,0.00023157,2]
[334470041,1723137033787,-390.4,0.00023226,2]
[334470042,1723137033797,-15820.66,0.00023278,2]
[334470043,1723137033807,-230.71,0.00023281,2]
[334470044,1723137033818,-150.0,0.00023434,2]
[334470045,1723137033831,-170.7,0.00023649,2]
[334470046,1723137033840,-151.22,0.0002377,2]
[334470047,1723137033849,-300.0,0.00023867,2]
[334470048,1723137033859,-1931.37486418,0.00023873,2]
[334470049,1723137033870,-713.0,0.0002395,2]
[334470050,1723137033879,-183.95,0.00023971,2]
[334470051,1723137033888,-150.0,0.00024044,2]
[334470052,1723137033898,-925.31,0.00024055,2]
[334470053,1723137033909,-155.0,0.00024124,2]
[334470054,1723137033919,-155.0,0.00024124,2]
[334470055,1723137033928,-379.34,0.00024192,2]
[334470056,1723137033938,-712.54,0.00024192,2]
[334470057,1723137033949,-150.0,0.00024192,2]
[334470058,1723137033959,-150.0,0.00024192,2]
[334470059,1723137033968,-713.0,0.00024196,2]
[334470060,1723137033978,-500.0,0.00024315,2]
[334470061,1723137033987,-315.5,0.000244,2]
[334470062,1723137033997,-713.0,0.00024443,2]
[334470063,1723137034008,-150.0,0.00024654,2]
[334470064,1723137034017,-713.0,0.0002469,2]
[334470065,1723137034027,-3881.8354,0.000247,2]
[334470066,1723137034037,-964.1483,0.000247,2]
[334470067,1723137034046,-994.6548,0.000247,2]
[334470068,1723137034055,-163.57340756,0.000247,2]
[334470069,1723137034065,-163.57340754,0.00024722,2]
[334470070,1723137034074,-163.57340754,0.00024744,2]
[334470071,1723137034083,-163.57340754,0.00024767,2]
[334470072,1723137034092,-200.0,0.00024773,2]
[334470073,1723137034101,-163.57340754,0.00024789,2]
[334470074,1723137034111,-438.2276,0.0002479,2]
[334470075,1723137034120,-3363.4054,0.0002479,2]
[334470076,1723137034130,-2000.0,0.0002479,2]
[334470077,1723137034139,-2500.0,0.0002479,2]
[334470078,1723137034150,-31398.3956,0.000248,2]
[334470079,1723137034160,-70502.0015,0.000248,2]
[334470080,1723137034169,-165.37975234,0.000248,2]
[334470081,1723137034179,-320.75808225,0.000248,2]
[334470082,1723137034188,-163.57340754,0.00024811,2]
[334470083,1723137034198,-165.37975231,0.00024814,2]
[334470084,1723137034209,-165.37975231,0.00024829,2]
[334470085,1723137034218,-163.57340754,0.00024833,2]
[334470086,1723137034228,-165.37975231,0.00024843,2]
[334470087,1723137034237,-163.57340754,0.00024856,2]
[334470088,1723137034247,-165.37975231,0.00024857,2]
[334470089,1723137034258,-165.37975231,0.00024871,2]
[334470090,1723137034267,-200.0,0.00024873,2]
[334470091,1723137034276,-200.0,0.00024873,2]
[334470092,1723137034286,-195.26843417,0.00024873,2]
[334470093,1723137034296,-163.57340754,0.00024878,2]
[334470094,1723137034306,-7500.0,0.00024879,2]
[334470095,1723137034315,-165.37975231,0.00024886,2]
[334470096,1723137034324,-17599.11010556,0.00024888,14]
[334470097,1723137034342,-105748.729074,0.0002489,5]
[334470098,1723137034354,-1000.0,0.000249,2]
[334470099,1723137034364,-3000.0,0.000249,2]
[334470100,1723137034374,-4713.6504,0.000249,2]
[334470101,1723137034384,-142400.94885965,0.000249,2]
[334470102,1723137034399,-11693.05854522,0.000249,2]
[334470103,1723137034414,-2116.94139513,0.000249,2]
[334470104,1723137038370,-5060.4803947,0.000249,2]
[334470105,1723137038429,-17895.0,0.000249,2]
[334470106,1723137038440,-29624.0,0.000249,2]
[334470107,1723137038488,-4518.69362411,0.00020794,2]
[334470108,1723137038497,-36209.5708053,0.000249,2]
[334470109,1723137038507,-165.37975231,0.000249,2]
[334470110,1723137038516,-834.63139002,0.000249,4]
[334470111,1723137038526,-169.67,0.000249,31]
[334470112,1723137038535,-169.67,0.000249,31]
[334470113,1723137038545,-169.67,0.000249,31]
[334470114,1723137038554,-169.67,0.000249,31]
[334470115,1723137038564,-169.67,0.000249,31]
[334470116,1723137038573,-169.67,0.000249,31]
[334470117,1723137038583,-169.67,0.000249,31]
[334470118,1723137038593,-169.67,0.000249,31]
[334470119,1723137038602,-169.67,0.000249,31]
[334470120,1723137038611,-169.67,0.000249,31]
[334470121,1723137038620,-169.67,0.000249,31]
[334470122,1723137038630,-169.67,0.000249,31]
[334470123,1723137038639,-169.67,0.000249,31]
[334470124,1723137038649,-169.67,0.000249,31]
[334470125,1723137038658,-169.67,0.000249,31]
[334470126,1723137038668,-169.67,0.000249,31]
[334470127,1723137038677,-169.67,0.000249,31]
[334470128,1723137038686,-169.67,0.000249,31]
[334470129,1723137038696,-169.67,0.000249,31]
[334470130,1723137038705,-169.67,0.000249,31]
[334470131,1723137038718,-163.57340754,0.000249,2]
[334470132,1723137038728,-238.84722246,0.000249,2]
[334470133,1723137038738,-320.75808224,0.000249,2]
[334470134,1723137038747,-657.53090916,0.000249,2]
[334470135,1723137038757,-160.516516,0.00024932,2]
[334470136,1723137038767,-713.0,0.00024937,2]
[334470137,1723137038776,-28199.6610863,0.0002496,5]
[334470138,1723137038785,-7049.91527157,0.00024967,5]
[334470139,1723137038794,-21149.7458147,0.00024969,5]
[334470140,1723137038804,-19531.5852623,0.00024969,5]
[334470141,1723137038813,-14099.8305431,0.0002497,5]
[334470142,1723137038824,-19531.5852623,0.0002497,5]
[334470143,1723137038837,-256.06295204,0.00024973,2]
[334470144,1723137038847,-337.59240138,0.00024974,2]
[334470145,1723137038856,-14099.8305431,0.00024977,5]
[334470147,1723137038867,-13021.0568415,0.00024977,5]
[334470148,1723137038876,-35249.5763579,0.0002498,5]
[334470149,1723137038886,-32552.6421038,0.0002498,5]
[334470150,1723137038896,-14099.8305431,0.0002498,5]
[334470151,1723137038907,-39063.1705246,0.0002498,5]
[334470152,1723137038918,-6510.52842077,0.00024986,5]
[334470154,1723137038928,-13021.0568415,0.00024987,5]
[334470156,1723137038937,-71615.8126285,0.0002499,5]
[334470158,1723137038947,-157.26618874,0.0002499,2]
[334470160,1723137038956,-6125.20954439,0.0002499,5]
[334470162,1723137038972,-1364.83123837,0.0002499,5]
[334470164,1723137038983,-999.21919981,0.0002499,5]
[334470167,1723137039002,-18071.41722401,0.0002499,5]
[334470168,1723137039014,-5991.96489722,0.0002499,5]
[334470169,1723137039024,-152.899242,0.00024997,7]
[334470170,1723137039034,-7986.171044,0.00024997,2]
[334470171,1723137039044,-6456.1817936,0.00024997,2]
[334470172,1723137039053,-4926.1925431,0.00024997,2]
[334470173,1723137039063,-3396.2032926,0.00024997,2]
[334470174,1723137039072,-1866.2140422,0.00024997,2]
[334470175,1723137039083,-336.2247917,0.00024997,2]
[334470176,1723137039092,-151.0,0.00024997,7]
[334470177,1723137039102,-270.329413,0.00024997,7]
[334470178,1723137039112,-270.329413,0.00024997,7]
[334470179,1723137039121,-2700.73921104,0.00024997,2]
[334470180,1723137039131,-2154.5885854,0.00025,2]
[334470181,1723137039140,-8200.52150088,0.00025,9]
[334470182,1723137039151,-3073.04082559,0.00025,9]
[334470201,1723137042667,-711.33,0.00023986,2]
[334470203,1723137042677,-0.0185025,0.00024899,3]
[334470205,1723137042689,-1045.13231808,0.00024899,3]
[334470207,1723137042700,-2437.39358701,0.00024899,3]
[334470211,1723137042726,-260.07558978,0.00024899,3]
[334470213,1723137042738,-1129.10829927,0.00024899,3]
[334470215,1723137042749,-968.08777415,0.00024899,3]
[334470217,1723137042761,-792.30715724,0.00024899,3]
[334470219,1723137042771,-4903.29284281,0.00025,9]
[334470221,1723137042782,-1476.1,0.00025,9]
[334470224,1723137042794,-1191.1513179,0.00025,9]
[334470226,1723137042806,-470.89476816,0.00025,9]
[334470236,1723137042914,-485.3980518,0.00025,9]
[334470238,1723137042927,-975.50742252,0.00025,9]
[334470240,1723137042939,-807.664508,0.00025,9]
[334470242,1723137042950,-36679.03748228,0.00025,9]
[334470246,1723137042983,-200.0,0.00024873,2]
[334470247,1723137042992,-614.42952318,0.00025,9]
[334470248,1723137043004,-412.39,0.00025,9]
[334470254,1723137043102,-15604.12801043,0.00025,9]
[334470257,1723137043113,-308.94361421,0.00025,9]
[334470259,1723137043124,-1693.76705835,0.00025,9]
[334470289,1723137043411,-5759.89368103,0.00025,9]
[334470314,1723137044115,-1375.35413925,0.00025,9]
[334470315,1723137044126,-517.38000001,0.00025,9]
[334470316,1723137044137,-5966.88113328,0.00025,9]
[334470317,1723137044149,-6322.26871956,0.00025,9]
[334470318,1723137044160,-39628.94064421,0.00025,9]
[334470319,1723137044170,-56968.75025375,0.00025,2]
[334470320,1723137044181,-489.18296135,0.00025,2]
[334470321,1723137044192,-362.76485203,0.00025,2]
[334470322,1723137044206,-373.5132,0.00025,2]
[334470323,1723137044220,-158589.42669361,0.00025,2]
[334470324,1723137044232,-7785.53683929,0.00025,2]
[334470325,1723137044247,-2179.86755184,0.00025,2]
[334470356,1723137046561,-274.68725396,0.00020794,2]
[334470357,1723137046573,-181.86607884,0.00020794,2]
[334470358,1723137046728,-6398.49542116,0.00025,2]
[334470359,1723137046768,-3811.88593456,0.00025,2]
[334470360,1723137046779,-1269.50652219,0.00025,2]
[334470361,1723137046799,-313.08223174,0.00025,2]
[334470426,1723137151695,-150.0,0.000249,31]
[334470454,1723137908415,228524.25886574,0.00011,2]
[334470460,1723137974946,181.83613503,0.00011,2]
[334470461,1723137989458,449.41821093,0.00011,2]
[334470462,1723137992136,412.76630026,0.00011,2]
[334470464,1723138022810,17918.86716198,0.00011,2]
[334470465,1723138032514,425.76564301,0.00011,2]
[334470466,1723138033031,344.46246422,0.00011,2]
[334470470,1723138047102,944.086547,0.00011,2]
[334470471,1723138051094,155.0,0.00011,2]
[334470475,1723138077172,159.01284171,0.00011,2]
[334470476,1723138080690,359.88074679,0.0001,2]
[334470477,1723138094332,170.42026434,0.00011,2]
[334470486,1723138231603,-530.90490077,0.00013283,2]
[334470487,1723138231613,-300.0,0.00013332,2]